fUSD/lending_fUSD_20240105
["ID","MTS","AMOUNT","RATE_DAILY","PERIOD"]
[310351690,1704496235066,-3488.31,0.00027397,2]
[310351691,1704496235076,-250.0,0.00027397,2]
[310351692,1704496235085,-250.0,0.000274,2]
[310351693,1704496235095,-1037.0817784,0.00027427,2]
[310351694,1704496235105,-291.78761235,0.00027427,2]
[310351695,1704496235115,-241.61161094,0.00027427,2]
[310351696,1704496235125,-155.0,0.00027427,2]
[310351697,1704496235134,-2351.3011923,0.00027427,2]
[310351698,1704496235144,-155.0,0.00027427,2]
[310351699,1704496235154,-163.35829217,0.00027427,2]
[310351700,1704496235165,-214.21133708,0.00027427,2]
[310351701,1704496235174,-402.17174956,0.00027427,2]
[310351702,1704496235184,-526.86634552,0.00027427,2]
[310351703,1704496235194,-362.5696016,0.00027427,2]
[310351704,1704496235204,-161.21857687,0.00027427,2]
[310351705,1704496235214,-2449.78883145,0.00027428,2]
[310351706,1704496235223,-29873.62851917,0.00027429,2]
[310351707,1704496235233,-722.03,0.00027447,2]
[310351708,1704496235242,-38568.80677493,0.00027447,2]
[310351709,1704496235278,-700.0,0.00027447,2]
[310351710,1704496235291,-484.10191491,0.00027447,2]
[310351711,1704496235303,-883.38324,0.00027447,2]
[310351712,1704496235315,-282.64689268,0.00027447,2]
[310351753,1704496238037,-210.5568068,0.00023011,2]
[310351754,1704496238048,-303.23887805,0.00025928,5]
[310351755,1704496238058,-920.33228341,0.00027446,2]
[310351756,1704496238071,-473.3383626,0.00027446,2]
[310351757,1704496238148,-1606.32935399,0.00027446,2]
[310351758,1704496238159,-3000.0,0.00027446,2]
[310351759,1704496238169,-2911.66384665,0.00027446,2]
[310351760,1704496238214,-88.33615335,0.00027446,2]
[310351761,1704496238223,-3000.0,0.00027446,2]
[310351762,1704496238234,-1135.03731254,0.00027447,2]
[310351763,1704496238275,-1748.503797,0.00027446,2]
[310351784,1704496240435,-1251.496203,0.00027446,2]
[310351787,1704496240446,-1482.87419449,0.00027446,2]
[310351797,1704496240549,-500.0,0.00027446,2]
[310351859,1704496243041,-258.35304974,0.00027445,2]
[310351860,1704496243070,-2608.21168171,0.00027445,2]
[310351861,1704496243079,-512.7586933,0.00027445,2]
[310351862,1704496243089,-1017.12580551,0.00027446,2]
[310351863,1704496243098,-3000.0,0.00027446,2]
[310351864,1704496243107,-2582.75429137,0.00027446,2]
[310351865,1704496243120,-417.24570863,0.00027446,2]
[310351866,1704496243130,-3000.0,0.00027446,2]
[310351867,1704496243139,-3000.0,0.00027446,2]
[310351868,1704496243148,-3000.0,0.00027446,2]
[310351869,1704496243158,-3000.0,0.00027446,2]
[310351870,1704496243167,-4.99354183,0.00027446,2]
[310351871,1704496243179,-2995.00645817,0.00027446,2]
[310351872,1704496243190,-3000.0,0.00027446,2]
[310351873,1704496243199,-3000.0,0.00027446,2]
[310351874,1704496243209,-2048.27864184,0.00027446,2]
[310351875,1704496243242,-858.49651684,0.00027446,2]
[310351893,1704496245976,-633.94126115,0.00027444,2]
[310351894,1704496245989,-846.69902121,0.00027444,2]
[310351895,1704496245998,-93.22484132,0.00027446,2]
[310351896,1704496246007,-211.93346059,0.00027446,2]
[310351897,1704496246021,-566.80797371,0.00027446,2]
[310351898,1704496246203,-385.2659982,0.00027446,2]
[310351899,1704496277428,2955.4553,0.00022911,2]
[310351900,1704496294561,208.0,0.00022759,2]
[310351901,1704496611400,260.629232,0.00022759,2]
[310351903,1704496914000,175.26,0.00025342,120]
[310351954,1704497432089,-282.83377143,0.00023178,2]
[310351956,1704497432099,-10529.08430965,0.00023179,2]
[310351958,1704497432109,-33667.95985811,0.00023179,2]
[310351960,1704497432119,-150.0,0.0002318,2]
[310351962,1704497432129,-4260.79493092,0.0002318,2]
[310351964,1704497432139,-3615.56141849,0.0002318,2]
[310351966,1704497432149,-155.41046091,0.00023185,2]
[310351968,1704497432159,-429.43,0.00023199,2]
[310351969,1704497432168,-175.81,0.00023295,2]
[310351971,1704497432179,-317.84125667,0.00023839,2]
[310351972,1704497432188,-175.81,0.00023843,2]
[310351973,1704497432198,-999.99,0.00023843,2]
[310351974,1704497432208,-380.55,0.00023843,2]
[310351975,1704497432217,-155.37845086,0.00024296,2]
[310351976,1704497432228,-499.99,0.00024296,2]
[310351977,1704497432241,-9053.27,0.00024296,2]
[310351978,1704497432255,-155.4439,0.00024301,2]
[310351979,1704497432266,-155.0,0.00024309,2]
[310351980,1704497432275,-1532.9,0.00024309,2]
[310351981,1704497432285,-106.06557039,0.00024391,2]
[310351982,1704497432302,-69.74442961,0.00024391,2]
[310351983,1704497432312,-205.07,0.00024694,2]
[310351984,1704497432322,-367.2,0.00024742,2]
[310351985,1704497432332,-250.0,0.00024753,2]
[310351986,1704497432342,-3422.7,0.00024778,2]
[310351987,1704497432352,-500.0,0.00024799,2]
[310351988,1704497432362,-343.68553094,0.00024889,2]
[310351989,1704497432372,-3990.92,0.0002489,2]
[310351990,1704497432381,-13553.97430679,0.00024918,2]
[310351994,1704497432507,-1422.7064784,0.00024918,2]
[310351995,1704497432521,-1003.30335493,0.00024918,2]
[310351996,1704497432533,-433.59794111,0.00024918,2]
[310351997,1704497432570,-7119.39791877,0.00024918,2]
[310351998,1704497432580,-175.81,0.00024939,2]
[310351999,1704497432590,-15367.28908754,0.00024987,2]
[310352000,1704497432602,-4604.31642423,0.00024989,2]
[310352001,1704497432612,-162.99,0.00024989,2]
[310352002,1704497432622,-181.89231971,0.0002499,2]
[310352003,1704497432633,-2887.97585976,0.0002499,2]
[310352004,1704497432643,-1606.65048111,0.0002499,2]
[310352005,1704497432652,-150.99,0.00024995,2]
[310352006,1704497432662,-691.49436686,0.00025,2]
[310352007,1704497432671,-166.89184051,0.00025,2]
[310352008,1704497432681,-1250.0,0.00025,3]
[310352009,1704497432690,-150.4,0.00025,2]
[310352010,1704497432700,-575.29,0.0002503,2]
[310352011,1704497432710,-259.98,0.00025082,2]
[310352012,1704497432719,-207.9,0.00025105,2]
[310352013,1704497432728,-250.0,0.00025112,2]
[310352014,1704497432738,-207.9,0.00025174,2]
[310352015,1704497432748,-207.9,0.00025243,2]
[310352016,1704497432758,-207.9,0.00025311,2]
[310352017,1704497432768,-459.2,0.00025326,2]
[310352018,1704497432778,-393.74,0.00025326,2]
[310352019,1704497432787,-200.0,0.00025342,2]
[310352020,1704497432797,-5000.0,0.00025342,2]
[310352021,1704497432807,-207.9,0.0002538,2]
[310352022,1704497432816,-207.9,0.00025449,2]
[310352023,1704497432826,-429.43,0.00025463,2]
[310352024,1704497432835,-175.81,0.00025487,2]
[310352025,1704497432846,-210.0,0.00025498,2]
[310352026,1704497432857,-207.9,0.00025518,2]
[310352027,1704497432867,-207.9,0.00025587,2]
[310352028,1704497432876,-200.0,0.00025614,2]
[310352029,1704497432886,-207.9,0.00025656,2]
[310352030,1704497432896,-207.9,0.00025725,2]
[310352031,1704497432905,-159.06,0.00025793,2]
[310352032,1704497432915,-207.9,0.00025793,2]
[310352033,1704497432925,-1000.0,0.00025842,2]
[310352034,1704497432935,-207.9,0.00025862,2]
[310352035,1704497432945,-719.12,0.0002588,2]
[310352036,1704497432955,-207.9,0.00025931,2]
[310352037,1704497432964,-207.9,0.00026,2]
[310352038,1704497432974,-575.29,0.00026008,2]
[310352039,1704497432983,-175.81,0.00026035,2]
[310352040,1704497432992,-207.9,0.00026069,2]
[310352041,1704497433002,-736.89,0.00026072,2]
[310352042,1704497433113,-431.74556147,0.00026074,2]
[310352043,1704497433124,-150.0,0.00026079,2]
[310352044,1704497433134,-166.88,0.00026109,2]
[310352045,1704497433142,-207.9,0.00026138,2]
[310352046,1704497433152,-207.9,0.00026207,2]
[310352047,1704497433161,-333.40106,0.00026248,2]
[310352048,1704497433171,-207.9,0.00026275,2]
[310352049,1704497433180,-343.68553094,0.00026295,2]
[310352050,1704497433189,-157.02,0.00026344,2]
[310352051,1704497433198,-207.9,0.00026344,2]
[310352052,1704497433207,-333.40106,0.00026348,2]
[310352053,1704497433217,-540.8,0.00026353,2]
[310352054,1704497433226,-207.9,0.00026413,2]
[310352055,1704497433235,-734.01,0.00026437,2]
[310352056,1704497433246,-151.72,0.00026447,2]
[310352057,1704497433257,-333.40106,0.00026448,2]
[310352058,1704497433267,-3180.04163262,0.00026451,2]
[310352059,1704497433276,-157.02,0.00026547,2]
[310352060,1704497433286,-333.40106,0.00026548,2]
[310352061,1704497433295,-350.98,0.00026583,2]
[310352062,1704497433305,-333.40106,0.00026648,2]
[310352063,1704497433314,-333.40106,0.00026748,2]
[310352064,1704497433323,-157.02,0.00026749,2]
[310352065,1704497433332,-1038.45025429,0.000268,2]
[310352066,1704497433346,-56266.22467877,0.000268,2]
[310352067,1704497433356,-333.40106,0.00026848,2]
[310352068,1704497433364,-170.02,0.00026874,2]
[310352069,1704497433373,-333.40106,0.00026948,2]
[310352070,1704497433382,-157.02,0.00026952,2]
[310352071,1704497433391,-575.29,0.00026987,2]
[310352072,1704497433400,-222.49252899,0.00027,2]
[310352073,1704497433410,-1300.0,0.00027,3]
[310352074,1704497433419,-58190.43333327,0.00027,2]
[310352075,1704497433428,-333.40106,0.00027048,2]
[310352076,1704497433437,-333.40106,0.00027148,2]
[310352077,1704497433447,-157.02,0.00027155,2]
[310352078,1704497433456,-341.75664799,0.0002717,2]
[310352079,1704497433466,-33372.44780234,0.0002718,2]
[310352080,1704497433475,-1306.21244407,0.00027181,2]
[310352081,1704497433484,-150.0,0.00027188,2]
[310352082,1704497433493,-210.0,0.00027208,2]
[310352083,1704497433504,-643.82,0.00027247,2]
[310352084,1704497433514,-333.40106,0.00027248,2]
[310352085,1704497433523,-5000.0,0.00027327,2]
[310352086,1704497433533,-333.40106,0.00027348,2]
[310352087,1704497433543,-157.02,0.00027357,2]
[310352088,1704497433553,-157.40802707,0.00027397,2]
[310352089,1704497433562,-250.0,0.00027397,2]
[310352090,1704497433571,-3527.07,0.00027397,2]
[310352091,1704497433581,-250.0,0.000274,2]
[310352092,1704497433590,-275.663798,0.00027428,7]
[310352093,1704497433599,-151.0,0.00027428,7]
[310352094,1704497433608,-151.0,0.00027428,7]
[310352095,1704497433617,-151.0,0.00027428,7]
[310352096,1704497433627,-730.65,0.00027433,2]
[310352097,1704497433636,-155.29980655,0.00027442,2]
[310352098,1704497433646,-157.23200511,0.00027443,2]
[310352099,1704497433655,-930.65377977,0.00027443,2]
[310352100,1704497433664,-1127.52,0.00027443,7]
[310352101,1704497433673,-1127.52,0.00027443,7]
[310352102,1704497433683,-153.508608,0.00027443,7]
[310352103,1704497433692,-153.508608,0.00027443,7]
[310352104,1704497433701,-151.0,0.00027443,7]
[310352105,1704497433711,-539.79914174,0.00027444,2]
[310352106,1704497433721,-729.95,0.00027446,2]
[310352107,1704497433730,-2000.0,0.00027447,2]
[310352108,1704497433739,-200.0,0.00027447,2]
[310352109,1704497433748,-2000.0,0.00027447,2]
[310352110,1704497433757,-200.0,0.00027447,2]
[310352111,1704497433768,-2000.0,0.00027447,2]
[310352112,1704497433778,-200.0,0.00027447,2]
[310352113,1704497433788,-2487.72504954,0.00027448,2]
[310352114,1704497433797,-333.40106,0.00027448,2]
[310352115,1704497433806,-671.96251305,0.000275,4]
[310352116,1704497433816,-204.22,0.00027522,2]
[310352117,1704497433826,-438.28,0.00027534,2]
[310352118,1704497433836,-333.40106,0.00027548,2]
[310352119,1704497433845,-164.2384182,0.00027555,2]
[310352120,1704497433855,-3527.07,0.00027556,2]
[310352121,1704497433864,-157.25,0.00027557,2]
[310352122,1704497433874,-157.02,0.0002756,2]
[310352123,1704497433883,-333.40106,0.00027648,2]
[310352124,1704497433904,-343.68553094,0.000277,2]
[310352125,1704497433916,-151.0,0.00027712,7]
[310352126,1704497433926,-151.0,0.00027712,7]
[310352127,1704497433935,-151.0,0.00027712,7]
[310352128,1704497433945,-427.5717444,0.00027712,2]
[310352129,1704497433955,-8434.03381471,0.00027712,2]
[310352130,1704497433964,-2147.04113911,0.00027713,2]
[310352131,1704497433974,-3527.07,0.00027714,2]
[310352132,1704497433984,-2000.0,0.00027721,2]
[310352133,1704497433994,-200.0,0.00027721,2]
[310352134,1704497434004,-2000.0,0.00027721,2]
[310352135,1704497434014,-200.0,0.00027721,2]
[310352136,1704497434024,-429.43,0.00027727,2]
[310352137,1704497434034,-333.40106,0.00027748,2]
[310352138,1704497434044,-157.02,0.00027762,2]
[310352139,1704497434054,-500.0,0.00027797,2]
[310352140,1704497434064,-31443.0423,0.00027797,2]
[310352141,1704497434073,-1127.52,0.00027797,7]
[310352142,1704497434083,-1127.52,0.00027797,7]
[310352143,1704497434092,-153.508608,0.00027797,7]
[310352144,1704497434102,-153.508608,0.00027797,7]
[310352145,1704497434112,-151.0,0.00027797,7]
[310352146,1704497434121,-699.4852,0.00027799,2]
[310352147,1704497434133,-827.2384,0.00027799,2]
[310352148,1704497434144,-201.76112699,0.00027799,2]
[310352149,1704497434155,-33238.0,0.000278,2]
[310352150,1704497434165,-151.0,0.000278,7]
[310352151,1704497434174,-151.0,0.000278,7]
[310352152,1704497434184,-207.0,0.000278,7]
[310352153,1704497434194,-151.72,0.00027817,2]
[310352154,1704497434205,-1306.21244407,0.00027831,2]
[310352155,1704497434215,-333.40106,0.00027848,2]
[310352156,1704497434224,-3527.07,0.00027872,2]
[310352157,1704497434235,-319.17080926,0.00027889,2]
[310352158,1704497434248,-317.75,0.00027896,2]
[310352159,1704497434257,-317.75,0.00027896,2]
[310352160,1704497434267,-317.75,0.00027896,2]
[310352161,1704497434278,-255.77,0.00027896,2]
[310352162,1704497434288,-269.03,0.00027896,2]
[310352163,1704497434298,-231.4,0.00027896,2]
[310352164,1704497434309,-100000.0,0.00027897,2]
[310352165,1704497434319,-207.0,0.00027897,7]
[310352166,1704497434329,-151.0,0.00027897,7]
[310352167,1704497434340,-1127.52,0.00027897,7]
[310352168,1704497434350,-1127.52,0.00027897,7]
[310352169,1704497434361,-153.508608,0.00027897,7]
[310352170,1704497434371,-153.508608,0.00027897,7]
[310352171,1704497434382,-151.0,0.00027897,7]
[310352172,1704497434393,-3000.0,0.00027898,2]
[310352173,1704497434404,-3000.0,0.00027898,2]
[310352174,1704497434414,-3000.0,0.00027898,2]
[310352175,1704497434423,-3000.0,0.00027898,2]
[310352176,1704497434433,-3000.0,0.00027898,2]
[310352177,1704497434444,-3000.0,0.00027898,2]
[310352178,1704497434454,-3000.0,0.00027898,2]
[310352179,1704497434465,-3000.0,0.00027898,2]
[310352180,1704497434476,-3000.0,0.00027898,2]
[310352181,1704497434485,-3000.0,0.00027898,2]
[310352182,1704497434495,-640.47444149,0.00027898,2]
[310352183,1704497434504,-1974.0526,0.00027899,2]
[310352184,1704497434513,-108453.74839231,0.00027899,2]
[310352189,1704497438278,-6421.18613973,0.00023178,2]
[310352190,1704497438289,-136546.25160769,0.00027899,2]
[310352191,1704497438298,-1000.0,0.00027899,2]
[310352192,1704497438308,-151.0,0.00027899,7]
[310352193,1704497438318,-151.0,0.00027899,7]
[310352194,1704497438329,-1127.52,0.00027899,7]
[310352195,1704497438339,-1127.52,0.00027899,7]
[310352196,1704497438350,-153.508608,0.00027899,7]
[310352197,1704497438359,-153.508608,0.00027899,7]
[310352198,1704497438370,-151.0,0.00027899,7]
[310352199,1704497438381,-500.0,0.000279,2]
[310352200,1704497438391,-600.0,0.000279,10]
[310352201,1704497438402,-5032.74,0.00027945,2]
[310352202,1704497438412,-2255.43,0.00027945,2]
[310352203,1704497438424,-333.40106,0.00027948,2]
[310352204,1704497438434,-575.29,0.00027965,2]
[310352205,1704497438444,-157.02,0.00027965,2]
[310352206,1704497438454,-202.84578995,0.00027997,2]
[310352207,1704497438464,-207.10094658,0.00027997,2]
[310352208,1704497438473,-158.21861741,0.00027997,2]
[310352209,1704497438483,-1909.21560663,0.00027997,2]
[310352210,1704497438493,-715.9,0.00027999,2]
[310352211,1704497438503,-2000.0,0.00027999,2]
[310352212,1704497438513,-200.0,0.00027999,2]
[310352213,1704497438524,-2000.0,0.00027999,2]
[310352214,1704497438535,-200.0,0.00027999,2]
[310352215,1704497438545,-12262.29609774,0.00028,2]
[310352216,1704497438556,-685.31917993,0.00028,2]
[310352218,1704497438566,-151.0,0.0002802,7]
[310352219,1704497438575,-3527.07,0.0002803,2]
[310352220,1704497438585,-333.40106,0.00028048,2]
[310352221,1704497438594,-385.0,0.00028115,5]
[310352222,1704497438604,-333.40106,0.00028148,2]
[310352223,1704497438614,-157.02,0.00028168,2]
[310352225,1704497438625,-800.0,0.00028172,5]
[310352228,1704497438635,-3527.07,0.00028189,2]
[310352230,1704497438646,-543.70903053,0.00028197,2]
[310352232,1704497438655,-5000.0,0.00028207,2]
[310352234,1704497438666,-157.53167577,0.00028232,2]
[310352236,1704497438676,-333.40106,0.00028248,2]
[310352238,1704497438685,-1127.52,0.00028256,7]
[310352240,1704497438695,-1127.52,0.00028256,7]
[310352242,1704497438705,-153.508608,0.00028256,7]
[310352244,1704497438715,-153.508608,0.00028256,7]
[310352246,1704497438725,-151.0,0.00028256,7]
[310352249,1704497438736,-2266.0,0.00028256,2]
[310352251,1704497438746,-521.458,0.00028256,2]
[310352253,1704497438756,-588.0,0.00028256,2]
[310352255,1704497438766,-1941.414,0.00028256,2]
[310352257,1704497438776,-269.615,0.00028256,2]
[310352259,1704497438786,-157.346,0.00028256,2]
[310352261,1704497438796,-170.375,0.00028256,2]
[310352263,1704497438805,-1026.0,0.00028256,2]
[310352265,1704497438815,-800.0,0.00028271,5]
[310352267,1704497438825,-200.0,0.00028271,3]
[310352270,1704497438835,-2000.0,0.00028279,2]
[310352272,1704497438845,-200.0,0.00028279,2]
[310352274,1704497438855,-2000.0,0.00028279,2]
[310352276,1704497438865,-200.0,0.00028279,2]
[310352278,1704497438875,-155.0,0.00028297,2]
[310352280,1704497438885,-386.33549374,0.00028297,2]
[310352282,1704497438895,-284.48599854,0.00028297,2]
[310352284,1704497438905,-206.40875822,0.00028297,2]
[310352286,1704497438915,-437.95871489,0.00028297,2]
[310352288,1704497438926,-156.19133947,0.00028297,2]
[310352290,1704497438937,-1647.67379549,0.00028297,2]
[310352292,1704497438947,-20089.04820346,0.00028297,2]
[310352294,1704497438957,-155.43369151,0.00028297,2]
[310352297,1704497438967,-155.31701115,0.00028297,2]
[310352299,1704497438977,-880.97266104,0.00028297,2]
[310352300,1704497438987,-155.19605017,0.00028297,2]
[310352301,1704497438998,-840.51157263,0.00028297,2]
[310352302,1704497439009,-251.44969674,0.00028297,2]
[310352303,1704497439019,-155.40316722,0.00028297,2]
[310352304,1704497439029,-376.79366639,0.00028297,2]
[310352305,1704497439039,-155.0,0.00028297,2]
[310352306,1704497439050,-157.4532893,0.00028297,2]
[310352307,1704497439061,-324.1902635,0.00028297,2]
[310352308,1704497439071,-353.0862598,0.00028297,2]
[310352309,1704497439081,-580.84395807,0.00028297,2]
[310352310,1704497439091,-242.95459507,0.00028297,2]
[310352311,1704497439101,-193.48111135,0.00028298,2]
[310352312,1704497439111,-8374.143211,0.000283,2]
[310352313,1704497439121,-3527.07,0.00028347,2]
[310352314,1704497439131,-333.40106,0.00028348,2]
[310352315,1704497439141,-800.0,0.0002837,5]
[310352316,1704497439151,-157.02,0.0002837,2]
[310352317,1704497439161,-155.0,0.00028398,2]
[310352318,1704497439171,-333.40106,0.00028448,2]
[310352319,1704497439181,-157.63,0.00028462,2]
[310352320,1704497439191,-800.0,0.00028469,5]
[310352321,1704497439201,-459.2,0.00028492,2]
[310352322,1704497439210,-1127.52,0.00028498,7]
[310352323,1704497439220,-1127.52,0.00028498,7]
[310352324,1704497439230,-153.508608,0.00028498,7]
[310352325,1704497439245,-153.508608,0.00028498,7]
[310352326,1704497439264,-151.0,0.00028498,7]
[310352327,1704497439283,-1015.15413898,0.00028498,2]
[310352328,1704497439293,-255.36609276,0.00028498,2]
[310352329,1704497439304,-150.01,0.00028498,2]
[310352330,1704497439315,-3286.93466783,0.00028498,2]
[310352331,1704497439325,-647.14504288,0.00028499,2]
[310352332,1704497439336,-3527.07,0.00028505,2]
[310352333,1704497439346,-714.96,0.0002852,2]
[310352334,1704497439357,-333.40106,0.00028548,2]
[310352335,1704497439367,-1000.0,0.00028557,2]
[310352336,1704497439378,-1000.0,0.00028557,2]
[310352337,1704497439388,-1000.0,0.00028557,2]
[310352338,1704497439398,-1000.0,0.00028557,2]
[310352339,1704497439409,-1000.0,0.00028557,2]
[310352340,1704497439420,-353.7109,0.00028557,2]
[310352341,1704497439430,-500.0,0.00028557,2]
[310352342,1704497439440,-500.0,0.00028557,2]
[310352343,1704497439450,-500.0,0.00028557,2]
[310352344,1704497439460,-500.0,0.00028557,2]
[310352345,1704497439470,-184.7375,0.00028557,2]
[310352346,1704497439481,-2000.0,0.00028561,2]
[310352347,1704497439491,-200.0,0.00028561,2]
[310352348,1704497439502,-2000.0,0.00028561,2]
[310352349,1704497439512,-200.0,0.00028561,2]
[310352350,1704497439523,-157.02,0.00028573,2]
[310352351,1704497439533,-1156.28676057,0.00028597,2]
[310352352,1704497439543,-572.23684833,0.00028598,15]
[310352353,1704497439554,-150.0,0.00028607,2]
[310352354,1704497439563,-150.0,0.00028619,2]
[310352355,1704497439578,-500.0,0.0002864,2]
[310352356,1704497439589,-333.40106,0.00028648,2]
[310352357,1704497439600,-150.0,0.00028662,2]
[310352358,1704497439610,-3527.07,0.00028664,2]
[310352359,1704497439620,-5296.03552621,0.00028698,2]
[310352360,1704497439631,-725.01,0.00028699,2]
[310352361,1704497439642,-10479.13162015,0.00028699,2]
[310352362,1704497439653,-203.79356903,0.00028699,2]
[310352363,1704497439663,-506.1025725,0.000287,2]
[310352364,1704497439674,-150.0,0.000287,2]
[310352365,1704497439684,-845.643041,0.000287,2]
[310352366,1704497439695,-470.4276979,0.00028703,2]
[310352367,1704497439705,-2771.8033563,0.00028703,2]
[310352368,1704497439715,-2196.6319362,0.00028703,2]
[310352369,1704497439726,-45978.8595806,0.00028703,2]
[310352370,1704497439736,-6061.4333587,0.00028703,2]
[310352371,1704497439746,-430.65659471,0.00028704,2]
[310352372,1704497439756,-1127.52,0.00028704,7]
[310352373,1704497439766,-1127.52,0.00028704,7]
[310352374,1704497439777,-153.508608,0.00028704,7]
[310352375,1704497439787,-153.508608,0.00028704,7]
[310352376,1704497439797,-151.0,0.00028704,7]
[310352377,1704497439807,-150.0,0.00028712,2]
[310352378,1704497439818,-150.0,0.00028723,2]
[310352379,1704497439828,-165.91,0.00028724,2]
[310352381,1704497439839,-150.0,0.00028736,2]
[310352382,1704497439849,-333.40106,0.00028748,2]
[310352383,1704497439859,-333.40106,0.00028748,2]
[310352384,1704497439870,-150.0,0.0002875,2]
[310352385,1704497439880,-150.0,0.00028775,2]
[310352387,1704497439891,-157.02,0.00028776,2]
[310352388,1704497439901,-150.0,0.0002878,2]
[310352389,1704497439911,-150.0,0.0002878,2]
[310352390,1704497439922,-150.0,0.00028786,2]
[310352391,1704497439932,-157.53167577,0.00028788,2]
[310352392,1704497439942,-150.0,0.00028789,2]
[310352393,1704497439953,-543.70903049,0.00028794,2]
[310352394,1704497439965,-150.0,0.00028798,2]
[310352395,1704497440296,-1186.21425465,0.00028799,2]
[310352396,1704497440306,-167.70618008,0.00028799,2]
[310352397,1704497440315,-384.39085305,0.000288,2]
[310352398,1704497440325,-500.0,0.00028809,2]
[310352399,1704497440335,-150.0,0.00028819,2]
[310352400,1704497440345,-150.0,0.00028821,2]
[310352401,1704497440354,-3527.07,0.00028822,2]
[310352402,1704497440362,-157.63,0.00028841,2]
[310352403,1704497440371,-150.0,0.00028843,2]
[310352404,1704497440381,-333.40106,0.00028848,2]
[310352405,1704497440390,-150.0,0.0002888,2]
[310352406,1704497440402,-150.0,0.0002888,2]
[310352407,1704497440411,-150.0,0.00028891,2]
[310352408,1704497440421,-1000.0,0.00028899,7]
[310352409,1704497440431,-520.94417127,0.00028899,7]
[310352410,1704497440441,-929.01697936,0.00028899,7]
[310352411,1704497440451,-204.72996783,0.00028899,7]
[310352412,1704497440460,-270.06399333,0.00028899,7]
[310352413,1704497440470,-203.48334986,0.00028899,7]
[310352414,1704497440479,-250.85403115,0.00028899,7]
[310352415,1704497440489,-822.12457194,0.00028899,7]
[310352416,1704497440498,-714.26784091,0.00028899,7]
[310352417,1704497440508,-1000.0,0.00028899,7]
[310352418,1704497440517,-500.0,0.00028899,7]
[310352419,1704497440528,-186.36264311,0.00028899,7]
[310352420,1704497440538,-1000.0,0.00028899,7]
[310352421,1704497440548,-7500.0,0.000289,2]
[310352422,1704497440558,-19219.54265274,0.000289,2]
[310352423,1704497440568,-150.36366082,0.000289,2]
[310352424,1704497440577,-1300.0,0.000289,10]
[310352425,1704497440586,-1127.52,0.000289,7]
[310352426,1704497440597,-1127.52,0.000289,7]
[310352428,1704497440606,-153.508608,0.000289,7]
[310352430,1704497440615,-153.508608,0.000289,7]
[310352433,1704497440632,-201.76112698,0.000289,2]
[310352435,1704497440647,-167.6,0.00028905,2]
[310352437,1704497440658,-196.88,0.00028905,2]
[310352439,1704497440668,-152.76,0.00028905,2]
[310352441,1704497440678,-150.0,0.0002891,2]
[310352444,1704497440688,-310.61,0.0002891,2]
[310352446,1704497440698,-313.44,0.0002891,2]
[310352448,1704497440708,-341.86,0.0002891,2]
[310352450,1704497440719,-150.0,0.00028938,2]
[310352452,1704497440729,-575.29,0.00028944,2]
[310352454,1704497440739,-150.0,0.00028947,2]
[310352456,1704497440749,-333.40106,0.00028948,2]
[310352458,1704497440759,-150.0,0.00028949,2]
[310352460,1704497440770,-150.0,0.00028959,2]
[310352462,1704497440780,-150.0,0.00028963,2]
[310352464,1704497440790,-500.0,0.00028978,2]
[310352467,1704497440801,-200.0,0.00028978,2]
[310352469,1704497440812,-157.02,0.00028978,2]
[310352471,1704497440822,-150.0,0.00028981,2]